fUSD/lending_fUSD_20240301
["ID","MTS","AMOUNT","RATE_DAILY","PERIOD"]
[315936764,1709292567559,-119433.15363538,0.00041,120]
[315936765,1709292567584,-500.0,0.00041,40]
[315936766,1709292567609,-38988.9376016,0.00041,120]
[315936767,1709292567632,-20000.0,0.00041,120]
[315936768,1709292567660,-20000.0,0.00041,120]
[315936769,1709292567684,-20000.0,0.00041,120]
[315936770,1709292567708,-20000.0,0.00041,120]
[315936771,1709292567731,-3105.8,0.00041,120]
[315936772,1709292567754,-700.0,0.00041,120]
[315936773,1709292567778,-10000.0,0.00041,120]
[315936774,1709292567806,-10000.0,0.00041,120]
[315936775,1709292567831,-153.43839262,0.00041,60]
[315936776,1709292567856,-1512.1,0.00041,60]
[315936777,1709292571371,592.64323241,0.0004,60]
[315936778,1709292571682,150.0,0.00026835,120]
[315936779,1709292573640,30000.0,0.000305,45]
[315936787,1709292632232,-376.6148064,0.00021112,2]
[315936788,1709292632246,-1912.0051936,0.00021112,2]
[315936789,1709292632256,-193.08461262,0.00021135,2]
[315936790,1709292632266,-200.0,0.00021136,2]
[315936791,1709292632277,-5755.64888849,0.00021334,2]
[315936792,1709292632286,-677.98580415,0.00021334,2]
[315936793,1709292632295,-946.7119606,0.00021334,2]
[315936794,1709292632303,-1009.64255081,0.00021335,2]
[315936795,1709292632312,-404.92311093,0.00021335,2]
[315936796,1709292632322,-189.59,0.00021336,2]
[315936797,1709292632332,-163.32,0.00021582,2]
[315936798,1709292632342,-3779.54475845,0.00021622,2]
[315936799,1709292632354,-1381.40314155,0.00021622,2]
[315936800,1709292632364,-200.0,0.00021697,2]
[315936801,1709292632373,-500.0,0.00021916,2]
[315936802,1709292632382,-500.0,0.00021916,2]
[315936803,1709292632392,-500.0,0.00021916,2]
[315936804,1709292632402,-500.0,0.00021916,2]
[315936805,1709292632411,-500.0,0.00021916,2]
[315936806,1709292632420,-500.0,0.00021916,2]
[315936807,1709292632430,-500.0,0.00021916,2]
[315936808,1709292632439,-500.0,0.00021916,2]
[315936809,1709292632449,-205.64055302,0.00021916,2]
[315936810,1709292632460,-500.0,0.00021916,2]
[315936811,1709292632469,-586.78860009,0.00021916,2]
[315936812,1709292632478,-500.0,0.00021916,2]
[315936813,1709292632488,-500.0,0.00021916,2]
[315936814,1709292632497,-500.0,0.00021916,2]
[315936815,1709292632507,-500.0,0.00021916,2]
[315936816,1709292632517,-500.0,0.00021916,2]
[315936817,1709292632528,-500.0,0.00021916,2]
[315936818,1709292632538,-315.91361616,0.00021916,2]
[315936819,1709292632551,-184.08638384,0.00021916,2]
[315936820,1709292632561,-148.92177321,0.00021916,2]
[315936821,1709292632573,-351.07822679,0.00021916,2]
[315936822,1709292632582,-500.0,0.00021916,2]
[315936823,1709292632593,-407.95747559,0.00021916,2]
[315936824,1709292632616,-250.0,0.0002133,2]
[315936825,1709292632626,-92.04252441,0.00021916,2]
[315936826,1709292632636,-500.0,0.00021916,2]
[315936827,1709292632645,-500.0,0.00021916,2]
[315936828,1709292632656,-642.07224339,0.00021916,2]
[315936829,1709292632665,-500.0,0.00021916,2]
[315936830,1709292632674,-78.14626568,0.00021916,2]
[315936831,1709292632701,-421.85373432,0.00021916,2]
[315936832,1709292632714,-500.0,0.00021917,2]
[315936833,1709292632727,-64.61024095,0.00021917,2]
[315936834,1709292632743,-435.38975905,0.00021917,2]
[315936835,1709292632755,-500.0,0.00021917,2]
[315936836,1709292632767,-58.40678393,0.00021917,2]
[315936837,1709292632782,-329.66712704,0.00021917,2]
[315936838,1709292634756,-111.92608903,0.00021917,2]
[315936839,1709292634769,-500.0,0.00021917,2]
[315936840,1709292634780,-500.0,0.00021917,2]
[315936841,1709292634790,-500.0,0.00021917,2]
[315936842,1709292634801,-502.02509796,0.00021917,2]
[315936843,1709292634812,-446.10181845,0.00021917,2]
[315936844,1709292634825,-122.94318255,0.00021917,2]
[315936845,1709292634835,-500.0,0.00021917,2]
[315936846,1709292634847,-588.45755554,0.00021917,2]
[315936847,1709292634860,-500.0,0.00021917,2]
[315936848,1709292634870,-337.63055837,0.00021973,2]
[315936849,1709292634903,-265.26944163,0.00021973,2]
[315936850,1709292634914,-500.0,0.00021989,2]
[315936851,1709292634925,-500.0,0.00021989,2]
[315936852,1709292634935,-588.98,0.00021989,2]
[315936853,1709292634945,-500.0,0.00021989,2]
[315936854,1709292634955,-241.50055837,0.00021989,2]
[315937107,1709292653220,-258.49944163,0.00021989,2]
[315937108,1709292653229,-500.0,0.00021989,2]
[315937109,1709292653239,-500.0,0.00021989,2]
[315937110,1709292653248,-500.0,0.00021989,2]
[315937111,1709292653257,-150.0,0.00022,2]
[315937112,1709292653266,-2199.3617931,0.00022,2]
[315937113,1709292653277,-1483.57015019,0.00022,2]
[315937114,1709292653876,-248.79,0.00021917,2]
[315937115,1709292653886,-2778.91116514,0.00022,2]
[315937116,1709292653897,-2527.83225951,0.00022,2]
[315937117,1709292654430,-12185.52613888,0.00022,2]
[315937118,1709292654439,-5580.6238611,0.00022107,2]
[315937119,1709292654503,-2607.49196552,0.00022107,2]
[315937120,1709292654517,-3811.88417338,0.00022107,2]
[315937121,1709292654529,-12000.0,0.00022108,2]
[315937122,1709292654538,-12000.0,0.0002211,2]
[315937123,1709292654547,-12000.0,0.00022113,2]
[315937124,1709292654557,-12000.0,0.00022114,2]
[315937125,1709292654566,-4763.97304666,0.00022115,2]
[315937126,1709292654581,-1657.9887017,0.00022115,2]
[315937127,1709292654593,-263.46006845,0.00022115,2]
[315937128,1709292654633,-5314.57818319,0.00022115,2]
[315937129,1709292654642,-12000.0,0.00022116,2]
[315937130,1709292654651,-3325.46777222,0.00022117,2]
[315937131,1709292654664,-331.53551876,0.00022117,2]
[315937132,1709292654790,-3189.83787133,0.00022117,2]
[315937133,1709292654802,-2160.20640526,0.00022117,2]
[315937134,1709292654813,-582.39224527,0.00022117,2]
[315937135,1709292654865,-752.84673457,0.00022117,2]
[315937136,1709292655358,-582.73100968,0.00022117,2]
[315937137,1709292655371,-1033.66079991,0.00022117,2]
[315937138,1709292655383,-41.321643,0.00022117,2]
[315937139,1709292655392,-1985.81540486,0.00022118,2]
[315937140,1709292655861,-869.93643282,0.00021015,2]
[315937141,1709292655870,-48.76887121,0.00022118,2]
[315937142,1709292655882,-8345.35701172,0.00022118,2]
[315937143,1709292655893,-1620.05871221,0.00022118,2]
[315937144,1709292655904,-6115.98359776,0.00022118,2]
[315937145,1709292655932,-4420.60361027,0.00022118,2]
[315937146,1709292655959,-516.8772636,0.00022118,2]
[315937147,1709292656119,-716.24039358,0.00022118,2]
[315937148,1709292656144,-230.29513479,0.00022118,2]
[315937149,1709292656154,-193.02001066,0.00022121,2]
[315937150,1709292656164,-140.40856243,0.00022122,2]
[315937151,1709292656176,-3255.30993903,0.00022122,2]
[315937152,1709292656244,-8604.28149854,0.00022122,2]
[315937153,1709292656253,-1124.92576877,0.00022123,2]
[315937154,1709292656265,-3095.35,0.00022123,2]
[315937155,1709292656276,-7779.72423123,0.00022123,2]
[315937156,1709292656285,-12000.0,0.00022126,2]
[315937157,1709292656294,-12000.0,0.00022127,2]
[315937158,1709292656303,-12000.0,0.00022129,2]
[315937159,1709292656312,-12000.0,0.00022131,2]
[315937160,1709292656322,-6182.62547099,0.00022131,2]
[315937161,1709292656334,-5817.37452901,0.00022131,2]
[315937162,1709292656343,-12000.0,0.00022135,2]
[315937163,1709292656352,-151.45,0.00022136,2]
[315937164,1709292656361,-185.33649281,0.00022138,2]
[315937165,1709292656374,-11814.66350719,0.00022138,2]
[315937166,1709292656384,-12000.0,0.00022138,2]
[315937167,1709292656395,-2500.0,0.00022138,2]
[315937168,1709292656406,-2326.99771505,0.00022143,2]
[315937169,1709292656418,-591.72647706,0.00022143,2]
[315937170,1709292656430,-9081.27580789,0.00022143,2]
[315937171,1709292656439,-703.41,0.00022144,2]
[315937172,1709292656448,-500.0,0.00022144,2]
[315937173,1709292656457,-12000.0,0.00022145,2]
[315937174,1709292656466,-12000.0,0.00022146,2]
[315937175,1709292656475,-12000.0,0.00022149,2]
[315937176,1709292656484,-12000.0,0.00022154,2]
[315937177,1709292656493,-6253.4612181,0.00022154,2]
[315937178,1709292656546,-289.44795509,0.00022154,2]
[315937179,1709292656560,-607.0,0.00022154,2]
[315937180,1709292656820,-448.09236638,0.00022121,2]
[315937181,1709292656833,-602.12634673,0.00022121,2]
[315937182,1709292656842,-4850.09082681,0.00022154,2]
[315937183,1709292656851,-500.0,0.00022191,2]
[315937184,1709292656860,-500.0,0.00022191,2]
[315937185,1709292656870,-500.0,0.00022191,2]
[315937186,1709292656879,-500.0,0.00022191,2]
[315937187,1709292656888,-500.0,0.00022191,2]
[315937188,1709292656897,-500.0,0.00022191,2]
[315937189,1709292656907,-500.0,0.00022191,2]
[315937190,1709292656915,-401.7741035,0.00022191,2]
[315937191,1709292656925,-500.0,0.00022191,2]
[315937192,1709292656934,-158.85903588,0.00022239,2]
[315937193,1709292656943,-2689.15329418,0.00022261,2]
[315937194,1709292656952,-500.0,0.00022262,2]
[315937195,1709292656961,-500.0,0.00022262,2]
[315937196,1709292656970,-1324.89,0.00022262,2]
[315937197,1709292656979,-500.0,0.00022262,2]
[315937198,1709292656988,-1197.10639285,0.00022262,2]
[315937199,1709292657000,-333.70314074,0.00022262,2]
[315937200,1709292657011,-365.80046641,0.00022262,2]
[315937201,1709292657020,-529.42,0.00022262,2]
[315937202,1709292657029,-569.02,0.00022262,2]
[315937203,1709292657039,-1066.64,0.00022262,2]
[315937204,1709292657048,-500.0,0.00022262,2]
[315937205,1709292657057,-711.82,0.00022262,2]
[315937206,1709292657068,-940.62161796,0.00022262,2]
[315937207,1709292657096,-401.03461799,0.00022262,2]
[315937208,1709292657190,-896.19376405,0.00022262,2]
[315937209,1709292657199,-1119.37,0.00022262,2]
[315937210,1709292657209,-500.0,0.00022262,2]
[315937211,1709292657218,-193.31623495,0.00022262,2]
[315937212,1709292957978,7000.0,0.00022,30]
[315937213,1709293028853,200.0,0.0002189,30]
[315937214,1709293028878,200.0,0.0002189,30]
[315937215,1709293028904,200.0,0.0002189,30]
[315937216,1709293028935,200.0,0.0002189,30]
[315937217,1709293029214,200.0,0.0002189,30]
[315937218,1709293105381,-159.50865885,0.00019158,2]
[315937219,1709293105409,-481.0,0.00019256,2]
[315937220,1709293105437,-2929.31436295,0.00019257,2]
[315937221,1709293105468,-680.95,0.0001926,2]
[315937222,1709293105495,-350.0,0.0002,3]
[315937223,1709293105523,-159.50865882,0.00020342,2]
[315937224,1709293105552,-250.0,0.00020812,2]
[315937225,1709293105579,-250.0,0.00020927,2]
[315937226,1709293105606,-500.0,0.00020952,2]
[315937227,1709293105632,-171.89,0.00021044,2]
[315937228,1709293105662,-869.93643282,0.00021046,2]
[315937229,1709293105689,-499.99,0.00021046,2]
[315937230,1709293105716,-500.0,0.00021065,2]
[315937231,1709293105742,-200.0,0.00021088,2]
[315937232,1709293105769,-152.96,0.00021088,2]
[315937233,1709293105796,-2954.14,0.00021088,2]
[315937234,1709293105822,-294.51,0.00021088,2]
[315937235,1709293105849,-23900.0,0.00021088,2]
[315937236,1709293105875,-769.44,0.00021096,2]
[315937237,1709293105901,-203.26,0.00021147,2]
[315937238,1709293105927,-769.82,0.00021147,2]
[315937239,1709293105953,-840.0,0.00021147,2]
[315937240,1709293105979,-239.67,0.000212,2]
[315937241,1709293106006,-150.0,0.000212,2]
[315937242,1709293106033,-207.49,0.00021202,2]
[315937243,1709293106058,-500.0,0.00021357,2]
[315937244,1709293106085,-680.95,0.00021523,2]
[315937245,1709293106112,-159.50865882,0.00021525,2]
[315937246,1709293106138,-920.07,0.00021541,2]
[315937247,1709293106164,-407.37,0.00021541,2]
[315937248,1709293106191,-1839.76,0.00021541,2]
[315937249,1709293106218,-407.37,0.00021541,2]
[315937250,1709293106244,-171.76,0.00021636,2]
[315937251,1709293106271,-463.0,0.000217,2]
[315937252,1709293106299,-5133.0,0.000219,2]
[315937253,1709293106327,-368.43089333,0.00021917,2]
[315937254,1709293106354,-500.0,0.00021917,2]
[315937255,1709293106381,-500.0,0.00021917,2]
[315937256,1709293106407,-158.24,0.00021918,2]
[315937257,1709293106433,-152.85,0.00021918,2]
[315937258,1709293106459,-150.0,0.00021937,2]
[315937259,1709293106487,-655.23502167,0.00021999,2]
[315937260,1709293106514,-18882.8292512,0.00022,2]
[315937261,1709293106541,-12250.587229,0.00022,2]
[315937262,1709293106567,-400.0,0.00022,3]
[315937263,1709293106593,-178.0,0.00022,2]
[315937264,1709293106619,-2993.813,0.0002202,2]
[315937265,1709293106649,-1836.2837,0.00022021,2]
[315937266,1709293106676,-158.24,0.00022055,2]
[315937267,1709293106704,-1000.0,0.00022056,2]
[315937268,1709293106730,-467.35591352,0.000221,2]
[315937269,1709293106756,-150.99,0.00022107,2]
[315937270,1709293106784,-10030.96821902,0.0002211,2]
[315937271,1709293107048,-1969.05178098,0.0002211,2]
[315937272,1709293107075,-4763.97,0.00022117,2]
[315937273,1709293107101,-11999.99,0.00022117,2]
[315937274,1709293107126,-5750.63230679,0.0002212,2]
[315937275,1709293107152,-404.78472389,0.0002212,2]
[315937276,1709293107178,-162.07972765,0.0002212,2]
[315937277,1709293107202,-1009.03874261,0.00022121,2]
[315937278,1709293107228,-677.56907355,0.00022121,2]
[315937279,1709293107259,-3811.88,0.00022131,2]
[315937280,1709293107285,-21158.40071866,0.00022136,2]
[315937281,1709293107311,-11999.99,0.00022138,2]
[315937282,1709293107339,-165.16987665,0.00022143,30]
[315937283,1709293107365,-161.23353386,0.00022143,2]
[315937284,1709293107391,-500.0,0.00022144,2]
[315937285,1709293107419,-500.0,0.00022144,2]
[315937286,1709293107446,-500.0,0.00022144,2]
[315937287,1709293107986,-516.09,0.00022144,2]
[315937288,1709293108020,-500.0,0.00022144,2]
[315937289,1709293108046,-500.0,0.00022144,2]
[315937290,1709293108072,-500.0,0.00022144,2]
[315937291,1709293108098,-500.0,0.00022144,2]
[315937292,1709293108123,-500.0,0.00022144,2]
[315937293,1709293108148,-500.0,0.00022144,2]
[315937294,1709293108172,-500.0,0.00022144,2]
[315937295,1709293108196,-500.0,0.00022144,2]
[315937296,1709293108220,-500.0,0.00022144,2]
[315937297,1709293108243,-500.0,0.00022144,2]
[315937298,1709293108266,-500.0,0.00022144,2]
[315937299,1709293108290,-500.0,0.00022144,2]
[315937300,1709293108313,-500.0,0.00022144,2]
[315937301,1709293108336,-500.0,0.00022144,2]
[315937302,1709293108360,-500.0,0.00022144,2]
[315937303,1709293108384,-718.09,0.00022144,2]
[315937304,1709293108407,-500.0,0.00022144,2]
[315937305,1709293108431,-510.12933893,0.00022144,2]
[315937306,1709293108456,-549.85,0.00022144,2]
[315937307,1709293108478,-809.05,0.00022144,2]
[315937308,1709293108501,-150.0,0.00022144,2]
[315937309,1709293108525,-500.0,0.00022144,2]
[315937310,1709293108550,-593.4,0.00022144,2]
[315937311,1709293108573,-500.0,0.00022144,2]
[315937312,1709293108597,-500.0,0.00022144,2]
[315937313,1709293108621,-500.0,0.00022144,2]
[315937314,1709293108645,-500.0,0.00022144,2]
[315937315,1709293108669,-500.0,0.00022144,2]
[315937316,1709293108693,-514.5,0.00022144,2]
[315937317,1709293108716,-500.0,0.00022144,2]
[315937318,1709293108740,-500.0,0.00022144,2]
[315937319,1709293108763,-498.66533411,0.00022144,2]
[315937320,1709293108789,-500.0,0.00022144,2]
[315937321,1709293108813,-640.67,0.00022144,2]
[315937322,1709293108838,-500.0,0.00022144,2]
[315937323,1709293108863,-500.0,0.00022144,2]
[315937324,1709293108888,-500.0,0.00022144,2]
[315937325,1709293108916,-500.0,0.00022144,2]
[315937326,1709293108940,-500.0,0.00022144,2]
[315937327,1709293108963,-500.0,0.00022144,2]
[315937328,1709293108986,-500.0,0.00022144,2]
[315937329,1709293109010,-394.89894468,0.00022144,2]
[315937330,1709293109033,-500.0,0.00022144,2]
[315937331,1709293109057,-500.0,0.00022144,2]
[315937332,1709293109080,-500.0,0.00022144,2]
[315937333,1709293109104,-500.0,0.00022144,2]
[315937334,1709293109127,-500.0,0.00022144,2]
[315937335,1709293109151,-507.36,0.00022144,2]
[315937336,1709293109174,-500.0,0.00022144,2]
[315937337,1709293109198,-500.0,0.00022144,2]
[315937338,1709293109221,-500.0,0.00022144,2]
[315937339,1709293109245,-8063.50589764,0.00022146,2]
[315937340,1709293109337,-3936.50410236,0.00022146,2]
[315937341,1709293109362,-500.0,0.00022155,2]
[315937342,1709293109385,-784.47,0.00022155,2]
[315937343,1709293109409,-1645.22,0.00022155,2]
[315937344,1709293109433,-500.0,0.00022155,2]
[315937345,1709293109457,-500.0,0.00022155,2]
[315937346,1709293109481,-5319.24,0.00022155,2]
[315937347,1709293109505,-826.73,0.00022155,2]
[315937348,1709293109528,-581.24,0.00022155,2]
[315937349,1709293109553,-557.15,0.00022155,2]
[315937350,1709293109577,-500.0,0.00022155,2]
[315937351,1709293109600,-673.41,0.00022155,2]
[315937352,1709293109623,-690.22,0.00022155,2]
[315937353,1709293109649,-1565.93,0.00022155,2]
[315937354,1709293109673,-500.0,0.00022155,2]
[315937355,1709293109698,-500.0,0.00022155,2]
[315937356,1709293109720,-600.93,0.00022155,2]
[315937357,1709293109744,-521.76,0.00022155,2]
[315937358,1709293109767,-1379.87,0.00022155,2]
[315937359,1709293109832,-943.65,0.00022155,2]
[315937360,1709293109855,-818.36,0.00022155,2]
[315937361,1709293109879,-1277.64,0.00022155,2]
[315937362,1709293109901,-531.75,0.00022155,2]
[315937363,1709293109924,-1924.49,0.00022155,2]
[315937364,1709293109948,-5754.77,0.00022155,2]
[315937365,1709293109970,-802.02,0.00022155,2]
[315937366,1709293109993,-4334.29,0.00022155,2]
[315937367,1709293110016,-1458.58,0.00022155,2]
[315937368,1709293110040,-500.0,0.00022155,2]
[315937369,1709293110066,-59571.77589764,0.00022156,2]
[315937370,1709293110149,-52133.94870434,0.00022156,2]
[315937371,1709293110173,-47866.05129566,0.00022156,2]
[315937372,1709293110373,-2133.94870434,0.00022156,2]
[315937373,1709293110398,-50000.0,0.00022156,2]
[315937374,1709293110423,-8330.5686309,0.00022156,2]
[315937375,1709293110446,-4091.64097276,0.00022162,2]
[315937376,1709293110469,-424.53,0.0002217,2]
[315937377,1709293110491,-424.53,0.0002217,2]
[315937378,1709293110515,-515.34,0.0002217,2]
[315937379,1709293110539,-500.0,0.00022191,2]
[315937380,1709293110562,-500.0,0.00022191,2]
[315937381,1709293110587,-158.24,0.00022192,2]
[315937382,1709293110609,-1041.0,0.0002222,2]
[315937383,1709293110633,-200.0,0.00022229,2]
[315937384,1709293110658,-500.0,0.00022229,2]
[315937385,1709293110682,-158.85903589,0.00022239,2]
[315937386,1709293110706,-500.0,0.00022261,2]
[315937387,1709293110732,-689.76,0.00022261,2]
[315937388,1709293110757,-1292.65,0.00022261,2]
[315937389,1709293110781,-987.11,0.00022261,2]
[315937390,1709293110807,-714.55,0.00022261,2]
[315937391,1709293110830,-614.11,0.00022261,2]
[315937392,1709293110854,-1563.43,0.00022261,2]
[315937393,1709293110876,-886.75,0.00022261,2]
[315937394,1709293110902,-16222.37,0.00022261,2]
[315937395,1709293110926,-1498.85,0.00022261,2]
[315937396,1709293110950,-857.26,0.00022261,2]
[315937397,1709293110974,-1584.6,0.00022261,2]
[315937398,1709293110997,-772.79,0.00022261,2]
[315937399,1709293111021,-2837.11265611,0.00022261,2]
[315937400,1709293115741,-552.12,0.00022144,2]
[315937401,1709293115766,-684.77,0.00022155,2]
[315937402,1709293115791,-904.85,0.00022155,2]
[315937403,1709293115832,-99.08734389,0.00022261,2]
[315937404,1709293115857,-500.0,0.00022261,2]
[315937405,1709293115883,-500.0,0.00022261,2]
[315937406,1709293115908,-500.0,0.00022261,2]
[315937407,1709293115932,-1325.63,0.00022261,2]
[315937408,1709293115957,-1113.85,0.00022261,2]
[315937409,1709293115981,-655.99,0.00022261,2]
[315937410,1709293116005,-534.75,0.00022261,2]
[315937411,1709293116029,-949.01,0.00022261,2]
[315937412,1709293116057,-500.0,0.00022261,2]
[315937413,1709293116082,-500.0,0.00022261,2]
[315937414,1709293116106,-3218.11,0.00022261,2]
[315937415,1709293116131,-1878.15,0.00022261,2]
[315937416,1709293116156,-866.84,0.00022261,2]
[315937417,1709293116187,-1275.02,0.00022261,2]
[315937418,1709293116213,-900.56,0.00022261,2]
[315937419,1709293116238,-735.85,0.00022261,2]
[315937420,1709293116262,-1286.09,0.00022261,2]
[315937421,1709293116287,-2543.18,0.00022261,2]
[315937422,1709293116313,-500.0,0.00022261,2]
[315937423,1709293116338,-589.51,0.00022261,2]
[315937424,1709293116369,-1208.37,0.00022261,2]
[315937425,1709293116393,-1611.14,0.00022261,2]
[315937426,1709293116418,-1515.14,0.00022261,2]
[315937427,1709293116441,-500.0,0.00022262,2]
[315937428,1709293116465,-500.0,0.00022262,2]
[315937429,1709293116490,-500.0,0.00022262,2]
[315937430,1709293116513,-500.0,0.00022262,2]
[315937431,1709293116538,-626.03,0.00022262,2]
[315937432,1709293116563,-767.72,0.00022262,2]
[315937433,1709293116587,-515.53,0.00022262,2]
[315937434,1709293116611,-500.0,0.00022262,2]
[315937435,1709293116638,-500.0,0.00022262,2]
[315937436,1709293116663,-500.0,0.00022262,2]
[315937437,1709293116693,-500.0,0.00022262,2]
[315937438,1709293116718,-500.0,0.00022262,2]
[315937439,1709293116743,-873.03,0.00022262,2]
[315937440,1709293116767,-766.86,0.00022262,2]
[315937441,1709293116791,-500.0,0.00022262,2]
[315937442,1709293116816,-500.0,0.00022262,2]
[315937443,1709293116841,-533.83167179,0.00022262,2]
[315937444,1709293116865,-500.0,0.00022262,2]
[315937445,1709293116888,-500.0,0.00022262,2]
[315937446,1709293116912,-500.0,0.00022262,2]
[315937447,1709293116935,-615.70722446,0.00022262,2]
[315937448,1709293116958,-502.1157059,0.00022262,2]
[315937449,1709293116981,-500.0,0.00022262,2]
[315937450,1709293117004,-500.0,0.00022262,2]
[315937451,1709293117027,-222.93166371,0.00022262,2]
[315937452,1709293117053,-685.89,0.00022262,2]
[315937453,1709293117076,-314.39348585,0.00022262,2]
[315937454,1709293117099,-534.89,0.00022262,2]
[315937455,1709293117122,-500.0,0.00022262,2]
[315937456,1709293117146,-514.22,0.00022262,2]
[315937457,1709293117170,-500.0,0.00022262,2]
[315937458,1709293117193,-500.0,0.00022262,2]
[315937459,1709293117217,-503.45431817,0.00022262,2]
[315937460,1709293117242,-500.0,0.00022262,2]
[315937461,1709293117266,-518.5,0.00022262,2]
[315937462,1709293117290,-500.0,0.00022262,2]
[315937463,1709293117315,-500.0,0.00022262,2]
[315937464,1709293117340,-531.24,0.00022262,2]
[315937465,1709293117363,-500.0,0.00022262,2]
[315937466,1709293117388,-503.37911786,0.00022262,2]
[315937467,1709293117411,-502.86147249,0.00022262,2]
[315937468,1709293117435,-500.0,0.00022262,2]
[315937469,1709293117459,-500.0,0.00022262,2]
[315937470,1709293117482,-254.04112669,0.00022262,2]
[315937471,1709293117506,-500.0,0.00022262,2]
[315937472,1709293117530,-500.0,0.00022262,2]
[315937473,1709293117555,-432.92666658,0.00022262,2]
[315937474,1709293117579,-500.0,0.00022262,2]
[315937475,1709293117603,-500.0,0.00022262,2]
[315937476,1709293117627,-500.0,0.00022262,2]
[315937477,1709293117654,-500.0,0.00022262,2]
[315937478,1709293117678,-500.0,0.00022262,2]
[315937479,1709293117701,-500.0,0.00022262,2]
[315937480,1709293117726,-500.0,0.00022262,2]
[315937481,1709293117749,-499.94911045,0.00022262,2]
[315937482,1709293117772,-500.0,0.00022262,2]
[315937483,1709293117797,-501.88521877,0.00022262,2]
[315937484,1709293117821,-500.0,0.00022262,2]
[315937485,1709293118112,-320.58017266,0.00022262,2]
[315937486,1709293118139,-500.0,0.00022262,2]
[315937487,1709293118163,-528.43437062,0.00022262,2]
[315937488,1709293118187,-500.0,0.00022262,2]
[315937489,1709293118210,-233.02673162,0.00022262,2]
[315937490,1709293118233,-514.46,0.00022262,2]
[315937491,1709293118256,-500.0,0.00022262,2]
[315937492,1709293118279,-500.0,0.00022262,2]
[315937493,1709293118304,-366.21,0.00022262,2]
[315937494,1709293118327,-500.0,0.00022262,2]
[315937495,1709293118350,-600.37,0.00022262,2]
[315937496,1709293118373,-500.0,0.00022262,2]
[315937497,1709293118396,-500.0,0.00022262,2]
[315937498,1709293118420,-500.0,0.00022262,2]
[315937499,1709293118443,-500.0,0.00022262,2]
[315937500,1709293118467,-500.0,0.00022262,2]
[315937501,1709293118490,-500.0,0.00022262,2]
[315937502,1709293118514,-500.0,0.00022262,2]
[315937503,1709293118537,-530.36,0.00022262,2]
[315937504,1709293118563,-824.01,0.00022262,2]
[315937505,1709293118586,-500.0,0.00022262,2]
[315937506,1709293118609,-1215.91,0.00022262,2]
[315937507,1709293118633,-500.0,0.00022262,2]
[315937508,1709293118657,-500.0,0.00022262,2]
[315937509,1709293118685,-698.64,0.00022262,2]
[315937510,1709293118710,-500.0,0.00022262,2]
[315937511,1709293118735,-500.0,0.00022262,2]
[315937512,1709293118758,-500.0,0.00022262,2]
[315937513,1709293118782,-500.0,0.00022262,2]
[315937514,1709293118807,-889.91,0.00022262,2]
[315937515,1709293118831,-500.0,0.00022262,2]
[315937516,1709293118856,-500.0,0.00022262,2]
[315937517,1709293118880,-500.0,0.00022262,2]
[315937518,1709293118903,-549.69,0.00022262,2]
[315937519,1709293118927,-500.0,0.00022262,2]
[315937520,1709293118951,-500.0,0.00022262,2]
[315937521,1709293118974,-500.0,0.00022262,2]
[315937522,1709293118997,-500.0,0.00022262,2]